[Event "*** MasterClass Titled Tuesday Blitz"]
[Site "Chess.com"]
[Date "2017.08.01"]
[Round "5"]
[White "biostatistician"]
[Black "Journey_to_GrandMaster_YT"]
[Result "0-1"]
[WhiteElo "2454"]
[BlackElo "2343"]
[TimeControl "180+2"]
[EndTime "14:09:22 PDT"]
[Termination "Journey_to_GrandMaster_YT won by resignation"]

1. d4 {[%clk 0:03:01.3]} 1... d6 {[%clk 0:03:01.9]} 2. Nf3 {[%clk 0:03:01.7]}
2... Nf6 {[%clk 0:03:03.8]} 3. c4 {[%clk 0:03:02.4]} 3... Nbd7 {[%clk
0:03:05.2]} 4. Nc3 {[%clk 0:03:04.2]} 4... e5 {[%clk 0:03:06.4]} 5. e4 {[%clk
0:03:05.6]} 5... Be7 {[%clk 0:03:07.5]} 6. Be2 {[%clk 0:03:07.2]} 6... O-O
{[%clk 0:03:08.8]} 7. O-O {[%clk 0:03:08.9]} 7... c6 {[%clk 0:03:09.4]} 8. Be3
{[%clk 0:03:09.8]} 8... a6 {[%clk 0:03:06.5]} 9. d5 {[%clk 0:03:09.5]} 9... cxd5
{[%clk 0:03:07]} 10. cxd5 {[%clk 0:03:11.4]} 10... b5 {[%clk 0:03:07.8]} 11. Nd2
{[%clk 0:03:12.8]} 11... Ne8 {[%clk 0:02:59.5]} 12. b4 {[%clk 0:03:10.3]} 12...
Bg5 {[%clk 0:02:55.7]} 13. Bxg5 {[%clk 0:03:10.9]} 13... Qxg5 {[%clk 0:02:56.5]}
14. a4 {[%clk 0:03:12.8]} 14... bxa4 {[%clk 0:02:51.7]} 15. Rxa4 {[%clk
0:03:09.5]} 15... f5 {[%clk 0:02:48.1]} 16. exf5 {[%clk 0:03:05.8]} 16... Qxf5
{[%clk 0:02:48.5]} 17. Bg4 {[%clk 0:03:03.4]} 17... Qd3 {[%clk 0:02:49.2]} 18.
Be6+ {[%clk 0:02:51.8]} 18... Kh8 {[%clk 0:02:49.7]} 19. Nde4 {[%clk 0:02:53.7]}
19... Qxd1 {[%clk 0:01:52.1]} 20. Rxd1 {[%clk 0:02:55.6]} 20... Nb6 {[%clk
0:01:43.9]} 21. Ra5 {[%clk 0:02:53.8]} 21... Nc4 {[%clk 0:01:35.7]} 22. Ra2
{[%clk 0:02:43.4]} 22... Nc7 {[%clk 0:01:26.8]} 23. Bxc8 {[%clk 0:02:25]} 23...
Rfxc8 {[%clk 0:01:27.4]} 24. Rda1 {[%clk 0:02:16.6]} 24... Rcb8 {[%clk 0:01:17]}
25. Ra4 {[%clk 0:01:57.1]} 25... h6 {[%clk 0:01:12.1]} 26. g3 {[%clk 0:01:53.7]}
26... Rb6 {[%clk 0:01:05.3]} 27. b5 {[%clk 0:01:34.8]} 27... Nb2 {[%clk
0:01:02.5]} 28. R4a2 {[%clk 0:01:11.2]} 28... Nd3 {[%clk 0:01:00]} 29. bxa6
{[%clk 0:01:06.6]} 29... Nb4 {[%clk 0:00:51.2]} 30. Rb2 {[%clk 0:00:54.6]} 30...
Raxa6 {[%clk 0:00:44.2]} 31. Rab1 {[%clk 0:00:51.9]} 31... Ncxd5 {[%clk
0:00:40.9]} 32. Nxd5 {[%clk 0:00:40.6]} 32... Nxd5 {[%clk 0:00:40.9]} 33. Rxb6
{[%clk 0:00:41.6]} 33... Rxb6 {[%clk 0:00:34.1]} 34. Rd1 {[%clk 0:00:38.3]}
34... Nf6 {[%clk 0:00:23.6]} 35. Nxd6 {[%clk 0:00:38.4]} 35... Kh7 {[%clk
0:00:22.9]} 36. Nc4 {[%clk 0:00:33]} 36... Re6 {[%clk 0:00:20.9]} 37. Re1 {[%clk
0:00:33.9]} 37... e4 {[%clk 0:00:21.7]} 38. Kg2 {[%clk 0:00:35.5]} 38... Kg6
{[%clk 0:00:22.5]} 39. Ne3 {[%clk 0:00:36.3]} 39... Kf7 {[%clk 0:00:22.3]} 40.
Rd1 {[%clk 0:00:37.5]} 40... Re8 {[%clk 0:00:21.2]} 41. Ra1 {[%clk 0:00:37.5]}
41... g5 {[%clk 0:00:20.4]} 42. Ra7+ {[%clk 0:00:38.3]} 42... Kg6 {[%clk
0:00:21.5]} 43. Ra6 {[%clk 0:00:39.4]} 43... Kf7 {[%clk 0:00:19.4]} 44. Nf5
{[%clk 0:00:39.9]} 44... Kg6 {[%clk 0:00:20.3]} 45. Nxh6 {[%clk 0:00:38.8]}
45... Kxh6 {[%clk 0:00:18]} 46. Rxf6+ {[%clk 0:00:38.3]} 46... Kg7 {[%clk
0:00:19]} 47. Ra6 {[%clk 0:00:36.9]} 47... e3 {[%clk 0:00:19.5]} 48. fxe3 {[%clk
0:00:37.3]} 48... Rxe3 {[%clk 0:00:21.4]} 49. Kh3 {[%clk 0:00:37.9]} 49... Re2
{[%clk 0:00:15.3]} 50. g4 {[%clk 0:00:31.1]} 50... Kh7 {[%clk 0:00:12.6]} 51.
Kg3 {[%clk 0:00:32.1]} 51... Rb2 {[%clk 0:00:12.4]} 52. Rf6 {[%clk 0:00:31.2]}
52... Rb3+ {[%clk 0:00:12.1]} 53. Rf3 {[%clk 0:00:32.3]} 53... Rb2 {[%clk
0:00:13.2]} 54. Rf2 {[%clk 0:00:31.3]} 54... Rb3+ {[%clk 0:00:13.7]} 55. Kg2
{[%clk 0:00:32.6]} 55... Kg6 {[%clk 0:00:13.8]} 56. Rf3 {[%clk 0:00:30.5]} 56...
Rb4 {[%clk 0:00:15.2]} 57. Kg3 {[%clk 0:00:31]} 57... Ra4 {[%clk 0:00:16.5]} 58.
Rc3 {[%clk 0:00:31.9]} 58... Rb4 {[%clk 0:00:17.2]} 59. Rc6+ {[%clk 0:00:32.6]}
59... Kg7 {[%clk 0:00:18.3]} 60. Kf3 {[%clk 0:00:32.1]} 60... Rf4+ {[%clk
0:00:18.5]} 61. Kg3 {[%clk 0:00:32.9]} 61... Ra4 {[%clk 0:00:19.9]} 62. Rc3
{[%clk 0:00:33.9]} 62... Kg6 {[%clk 0:00:20.5]} 63. h3 {[%clk 0:00:35.3]} 63...
Ra2 {[%clk 0:00:20.6]} 64. Kf3 {[%clk 0:00:35.8]} 64... Rb2 {[%clk 0:00:19.5]}
65. Rd3 {[%clk 0:00:31.3]} 65... Ra2 {[%clk 0:00:20.3]} 66. Ke4 {[%clk
0:00:32.4]} 66... Ra4+ {[%clk 0:00:15.6]} 67. Ke5 {[%clk 0:00:33.4]} 67... Ra5+
{[%clk 0:00:15.2]} 68. Ke6 {[%clk 0:00:30.1]} 68... Ra6+ {[%clk 0:00:16.2]} 69.
Rd6 {[%clk 0:00:26.6]} 69... Ra3 {[%clk 0:00:17.2]} 70. Ke5+ {[%clk 0:00:27.5]}
70... Kg7 {[%clk 0:00:14.6]} 71. Kf5 {[%clk 0:00:27.1]} 71... Ra5+ {[%clk
0:00:15.5]} 72. Ke6 {[%clk 0:00:27.2]} 72... Ra3 {[%clk 0:00:16.4]} 73. Kf5
{[%clk 0:00:23.7]} 73... Ra5+ {[%clk 0:00:17.1]} 74. Ke6 {[%clk 0:00:21.4]}
74... Ra3 {[%clk 0:00:17.7]} 75. Rd5 {[%clk 0:00:22.5]} 75... Kg6 {[%clk
0:00:16.1]} 76. Rd8 {[%clk 0:00:24]} 76... Re3+ {[%clk 0:00:16.3]} 77. Kd6
{[%clk 0:00:22.4]} 77... Rxh3 {[%clk 0:00:14]} 78. Rg8+ {[%clk 0:00:23.2]} 78...
Kf6 {[%clk 0:00:15.1]} 79. Rf8+ {[%clk 0:00:24.5]} 79... Kg7 {[%clk 0:00:15.4]}
80. Rf5 {[%clk 0:00:22.3]} 80... Kg6 {[%clk 0:00:16.6]} 81. Ke6 {[%clk
0:00:23.8]} 81... Re3+ {[%clk 0:00:17.1]} 82. Re5 {[%clk 0:00:25]} 82... Ra3
{[%clk 0:00:17.8]} 83. Rd5 {[%clk 0:00:24.4]} 83... Ra4 {[%clk 0:00:17.9]} 84.
Ke5 {[%clk 0:00:22.3]} 84... Rxg4 {[%clk 0:00:18.4]} 85. Rd6+ {[%clk 0:00:23.4]}
85... Kh5 {[%clk 0:00:19.4]} 86. Rd8 {[%clk 0:00:24.9]} 86... Rf4 {[%clk
0:00:17.3]} 87. Rd1 {[%clk 0:00:26.3]} 87... Rf2 {[%clk 0:00:12]} 88. Ke4 {[%clk
0:00:18.4]} 88... g4 {[%clk 0:00:05.5]} 89. Ke3 {[%clk 0:00:20.3]} 89... Rf3+
{[%clk 0:00:05.8]} 90. Ke2 {[%clk 0:00:21.1]} 90... Kh4 {[%clk 0:00:05.9]} 91.
Rh1+ {[%clk 0:00:22]} 91... Kg3 {[%clk 0:00:06.9]} 92. Rg1+ {[%clk 0:00:23.2]}
92... Kf4 {[%clk 0:00:07.7]} 93. Ra1 {[%clk 0:00:21.5]} 93... Kg3 {[%clk
0:00:08.4]} 94. Rg1+ {[%clk 0:00:22]} 94... Kh3 {[%clk 0:00:09.7]} 95. Rh1+
{[%clk 0:00:22.3]} 95... Kg2 {[%clk 0:00:10.4]} 96. Rh4 {[%clk 0:00:22.1]} 96...
g3 {[%clk 0:00:09.6]} 97. Rh8 {[%clk 0:00:22.7]} 97... Rf7 {[%clk 0:00:08.8]}
98. Re8 {[%clk 0:00:23]} 98... Kg1 {[%clk 0:00:08.6]} 99. Re4 {[%clk 0:00:19.5]}
99... g2 {[%clk 0:00:09.3]} 100. Re5 {[%clk 0:00:20.9]} 100... Rh7 {[%clk
0:00:06.8]} 101. Rg5 {[%clk 0:00:20]} 101... Kh1 {[%clk 0:00:05.3]} 102. Kf2
{[%clk 0:00:18.4]} 102... Rf7+ {[%clk 0:00:06.1]} 103. Ke2 {[%clk 0:00:17.3]}
103... g1=Q {[%clk 0:00:06.5]} 104. Rh5+ {[%clk 0:00:19.2]} 104... Qh2+ {[%clk
0:00:07]} 105. Rxh2+ {[%clk 0:00:20.4]} 105... Kxh2 {[%clk 0:00:08.9]} 106. Ke1
{[%clk 0:00:22.1]} 0-1

[Event "*** MasterClass Titled Tuesday Blitz"]
[Site "Chess.com"]
[Date "2017.08.01"]
[Round "6"]
[White "Lord_Neezy"]
[Black "michaelk123"]
[Result "1-0"]
[WhiteElo "2171"]
[BlackElo "2326"]
[TimeControl "180+2"]
[EndTime "14:14:26 PDT"]
[Termination "Lord_Neezy won by resignation"]

1. e4 {[%clk 0:03:01.9]} 1... c6 {[%clk 0:02:55.7]} 2. d4 {[%clk 0:03:00]} 2...
d5 {[%clk 0:02:56.3]} 3. Nc3 {[%clk 0:03:01.7]} 3... dxe4 {[%clk 0:02:56.3]} 4.
Nxe4 {[%clk 0:03:03.6]} 4... Bf5 {[%clk 0:02:57.5]} 5. Ng3 {[%clk 0:03:02.6]}
5... Bg6 {[%clk 0:02:58.1]} 6. Nh3 {[%clk 0:03:04.2]} 6... Nf6 {[%clk
0:02:55.1]} 7. Nf4 {[%clk 0:03:04.4]} 7... e5 {[%clk 0:02:54.9]} 8. dxe5 {[%clk
0:02:48.9]} 8... Qa5+ {[%clk 0:02:53.6]} 9. c3 {[%clk 0:02:38.3]} 9... Qxe5+
{[%clk 0:02:53.8]} 10. Be2 {[%clk 0:02:39.9]} 10... Nbd7 {[%clk 0:02:49.1]} 11.
O-O {[%clk 0:02:35.3]} 11... O-O-O {[%clk 0:02:44.6]} 12. Qa4 {[%clk 0:02:29.5]}
12... Kb8 {[%clk 0:02:17.4]} 13. Nxg6 {[%clk 0:02:28.9]} 13... Nc5 {[%clk
0:01:48.9]} 14. Bf4 {[%clk 0:01:55]} 14... Nxa4 {[%clk 0:01:23.7]} 15. Bxe5+
{[%clk 0:01:55.5]} 15... Kc8 {[%clk 0:01:20.2]} 16. Nxh8 {[%clk 0:01:55.3]} 1-0

[Event "*** MasterClass Titled Tuesday Blitz"]
[Site "Chess.com"]
[Date "2017.08.01"]
[Round "6"]
[White "hassler2"]
[Black "oskariot"]
[Result "0-1"]
[WhiteElo "2323"]
[BlackElo "2495"]
[TimeControl "180+2"]
[EndTime "14:14:35 PDT"]
[Termination "oskariot won by resignation"]

1. b3 {[%clk 0:03:01.9]} 1... a5 {[%clk 0:03:00.4]} 2. Bb2 {[%clk 0:03:02]} 2...
a4 {[%clk 0:03:01.9]} 3. e3 {[%clk 0:03:01.9]} 3... e6 {[%clk 0:03:03.1]} 4. Nf3
{[%clk 0:03:02.6]} 4... Nf6 {[%clk 0:03:03.6]} 5. Be2 {[%clk 0:03:02.1]} 5...
Be7 {[%clk 0:03:04.8]} 6. O-O {[%clk 0:03:01.1]} 6... O-O {[%clk 0:03:06]} 7. a3
{[%clk 0:03:01.8]} 7... axb3 {[%clk 0:03:04.2]} 8. cxb3 {[%clk 0:03:03.7]} 8...
b6 {[%clk 0:03:05.6]} 9. b4 {[%clk 0:03:04.2]} 9... Bb7 {[%clk 0:03:06.9]} 10.
Qc2 {[%clk 0:03:04.9]} 10... c5 {[%clk 0:03:02.6]} 11. Ng5 {[%clk 0:03:01.8]}
11... g6 {[%clk 0:02:59.4]} 12. b5 {[%clk 0:02:58.2]} 12... d5 {[%clk
0:02:48.1]} 13. f4 {[%clk 0:02:54.5]} 13... Nbd7 {[%clk 0:02:46.2]} 14. g4
{[%clk 0:02:51.3]} 14... c4 {[%clk 0:02:44]} 15. f5 {[%clk 0:02:51.4]} 15... Nc5
{[%clk 0:02:40]} 16. fxg6 {[%clk 0:02:45.4]} 16... fxg6 {[%clk 0:02:35.7]} 17.
h3 {[%clk 0:02:20.1]} 17... Qd6 {[%clk 0:02:31.9]} 18. Rf4 {[%clk 0:02:11.1]}
18... Nfd7 {[%clk 0:02:14]} 19. Qc3 {[%clk 0:01:13.5]} 19... Bf6 {[%clk
0:01:52.3]} 20. Rxf6 {[%clk 0:01:10.2]} 20... Qg3+ {[%clk 0:01:48.6]} 21. Kf1
{[%clk 0:01:09.1]} 21... Rxf6+ {[%clk 0:01:48.8]} 22. Nf3 {[%clk 0:01:08.1]} 0-1

[Event "*** MasterClass Titled Tuesday Blitz"]
[Site "Chess.com"]
[Date "2017.08.01"]
[Round "6"]
[White "lukas_111111"]
[Black "TryingToGetBetter94"]
[Result "1/2-1/2"]
[WhiteElo "2422"]
[BlackElo "2338"]
[TimeControl "180+2"]
[EndTime "14:15:05 PDT"]
[Termination "Game drawn by agreement"]

1. e4 {[%clk 0:03:01.9]} 1... e5 {[%clk 0:03:00.5]} 2. Nf3 {[%clk 0:03:02.3]}
2... Nc6 {[%clk 0:03:02]} 3. Bb5 {[%clk 0:03:03.3]} 3... f5 {[%clk 0:03:03.4]}
4. d3 {[%clk 0:03:00.6]} 4... fxe4 {[%clk 0:03:04.7]} 5. dxe4 {[%clk 0:03:01.7]}
5... Nf6 {[%clk 0:03:06.3]} 6. O-O {[%clk 0:02:54]} 6... Bc5 {[%clk 0:03:07]} 7.
Qd3 {[%clk 0:02:53.1]} 7... d6 {[%clk 0:02:58.6]} 8. Qc4 {[%clk 0:02:36.4]} 8...
Bd7 {[%clk 0:02:58.3]} 9. Nc3 {[%clk 0:02:32.6]} 9... Qe7 {[%clk 0:02:58.4]} 10.
Nd5 {[%clk 0:02:31.9]} 10... Nxd5 {[%clk 0:02:59.7]} 11. exd5 {[%clk 0:02:33]}
11... Nd4 {[%clk 0:03:00.8]} 12. Bxd7+ {[%clk 0:02:33.5]} 12... Qxd7 {[%clk
0:03:02.7]} 13. Nxd4 {[%clk 0:02:34.1]} 13... Bxd4 {[%clk 0:03:04.3]} 14. c3
{[%clk 0:02:29]} 14... Bb6 {[%clk 0:03:04.9]} 15. a4 {[%clk 0:02:29.8]} 15... a6
{[%clk 0:03:01.3]} 16. a5 {[%clk 0:02:30.3]} 16... Ba7 {[%clk 0:02:58.8]} 17.
Be3 {[%clk 0:02:31.8]} 17... O-O {[%clk 0:02:56.5]} 18. Bxa7 {[%clk 0:02:22]}
18... Rxa7 {[%clk 0:02:58.4]} 19. f4 {[%clk 0:02:20.4]} 19... exf4 {[%clk
0:02:55.1]} 20. Rxf4 {[%clk 0:02:21.1]} 20... Raa8 {[%clk 0:02:51.4]} 21. Raf1
{[%clk 0:02:21.4]} 21... Qe7 {[%clk 0:02:46]} 22. Rxf8+ {[%clk 0:02:14.2]} 22...
Rxf8 {[%clk 0:02:47.9]} 23. Rxf8+ {[%clk 0:02:15]} 23... Kxf8 {[%clk 0:02:49.8]}
24. Qf4+ {[%clk 0:02:05.1]} 24... Kg8 {[%clk 0:02:47.9]} 25. Kf2 {[%clk
0:01:51.3]} 25... h6 {[%clk 0:02:47.1]} 26. h3 {[%clk 0:01:39.2]} 26... Kh7
{[%clk 0:02:10.4]} 27. Qf5+ {[%clk 0:01:36.3]} 27... g6 {[%clk 0:02:08.5]} 28.
Qc8 {[%clk 0:01:26.1]} 28... Qh4+ {[%clk 0:01:57.4]} 29. g3 {[%clk 0:01:23.3]}
29... Qf6+ {[%clk 0:01:57.2]} 30. Kg2 {[%clk 0:01:24.4]} 30... Qe7 {[%clk
0:01:54.6]} 1/2-1/2

[Event "*** MasterClass Titled Tuesday Blitz"]
[Site "Chess.com"]
[Date "2017.08.01"]
[Round "6"]
[White "Ilja_Semjonovs"]
[Black "wonderfultime"]
[Result "1-0"]
[WhiteElo "2418"]
[BlackElo "2639"]
[TimeControl "180+2"]
[EndTime "14:15:11 PDT"]
[Termination "Ilja_Semjonovs won by resignation"]

1. e4 {[%clk 0:03:01.9]} 1... c5 {[%clk 0:02:59.6]} 2. Nf3 {[%clk 0:03:02.6]}
2... d6 {[%clk 0:02:59.9]} 3. d4 {[%clk 0:03:03.1]} 3... cxd4 {[%clk 0:03:01.8]}
4. Nxd4 {[%clk 0:03:04.1]} 4... Nf6 {[%clk 0:03:03.2]} 5. Nc3 {[%clk 0:03:04.9]}
5... g6 {[%clk 0:03:04.5]} 6. Be3 {[%clk 0:03:03.8]} 6... Bg7 {[%clk 0:03:05.9]}
7. f3 {[%clk 0:03:04.5]} 7... O-O {[%clk 0:03:07.4]} 8. Qd2 {[%clk 0:03:05.3]}
8... Nc6 {[%clk 0:03:08.3]} 9. O-O-O {[%clk 0:03:05.9]} 9... d5 {[%clk 0:03:09]}
10. exd5 {[%clk 0:03:06.7]} 10... Nxd5 {[%clk 0:03:10]} 11. Nxc6 {[%clk
0:03:07.6]} 11... bxc6 {[%clk 0:03:11.9]} 12. Nxd5 {[%clk 0:03:08.2]} 12... cxd5
{[%clk 0:03:12.4]} 13. Bh6 {[%clk 0:03:09]} 13... Bxh6 {[%clk 0:02:56.2]} 14.
Qxh6 {[%clk 0:03:07.8]} 14... Qb6 {[%clk 0:02:56.6]} 15. h4 {[%clk 0:03:01.4]}
15... Rb8 {[%clk 0:02:55.7]} 16. b3 {[%clk 0:03:01.9]} 16... Qf6 {[%clk
0:02:46.9]} 17. Kb1 {[%clk 0:02:58.7]} 17... Rd8 {[%clk 0:00:41]} 18. h5 {[%clk
0:02:55.4]} 18... Bf5 {[%clk 0:00:38.3]} 19. Bd3 {[%clk 0:02:51.9]} 19... Bxd3
{[%clk 0:00:38.5]} 20. Rxd3 {[%clk 0:02:51]} 20... e6 {[%clk 0:00:40]} 21. hxg6
{[%clk 0:02:49.8]} 21... hxg6 {[%clk 0:00:41.9]} 22. f4 {[%clk 0:02:31.5]} 22...
Rb4 {[%clk 0:00:38.3]} 23. Rdh3 {[%clk 0:02:25.5]} 23... Rdb8 {[%clk 0:00:36.8]}
24. g4 {[%clk 0:02:12.8]} 24... Rxf4 {[%clk 0:00:29]} 25. Qh8+ {[%clk
0:02:10.1]} 1-0

[Event "*** MasterClass Titled Tuesday Blitz"]
[Site "Chess.com"]
[Date "2017.08.01"]
[Round "6"]
[White "Jahonas"]
[Black "josiwales"]
[Result "0-1"]
[WhiteElo "2198"]
[BlackElo "2287"]
[TimeControl "180+2"]
[EndTime "14:15:23 PDT"]
[Termination "josiwales won by resignation"]

1. d4 {[%clk 0:03:02]} 1... d5 {[%clk 0:03:00.4]} 2. Nf3 {[%clk 0:03:03]} 2...
Nf6 {[%clk 0:03:00.5]} 3. c4 {[%clk 0:03:02.9]} 3... c6 {[%clk 0:03:01.9]} 4.
Nc3 {[%clk 0:03:04.1]} 4... dxc4 {[%clk 0:03:02.5]} 5. a4 {[%clk 0:03:02.8]}
5... Bf5 {[%clk 0:03:04]} 6. Ne5 {[%clk 0:03:02.7]} 6... e6 {[%clk 0:03:05.4]}
7. e3 {[%clk 0:03:02.3]} 7... Bb4 {[%clk 0:03:05.2]} 8. Bxc4 {[%clk 0:03:01.2]}
8... Nbd7 {[%clk 0:03:03.9]} 9. Nd3 {[%clk 0:02:59.9]} 9... a5 {[%clk
0:02:54.6]} 10. Bd2 {[%clk 0:02:56.5]} 10... O-O {[%clk 0:02:49.3]} 11. O-O
{[%clk 0:02:56]} 11... c5 {[%clk 0:02:48.6]} 12. Nxb4 {[%clk 0:02:50.8]} 12...
axb4 {[%clk 0:02:46.2]} 13. Nb5 {[%clk 0:02:51.4]} 13... Nb6 {[%clk 0:02:42.8]}
14. Qe2 {[%clk 0:02:36.7]} 14... Nxc4 {[%clk 0:02:36.6]} 15. Qxc4 {[%clk
0:02:37]} 15... b6 {[%clk 0:02:26.3]} 16. Rfd1 {[%clk 0:02:31.9]} 16... Qd5
{[%clk 0:02:17]} 17. Qf1 {[%clk 0:02:14.6]} 17... Qb3 {[%clk 0:02:15]} 18. a5
{[%clk 0:01:47.3]} 18... Bd3 {[%clk 0:02:14.6]} 19. Qe1 {[%clk 0:01:40.2]} 19...
Bxb5 {[%clk 0:02:15.5]} 20. axb6 {[%clk 0:01:38.4]} 20... Rxa1 {[%clk
0:02:15.5]} 21. Rxa1 {[%clk 0:01:38.3]} 21... cxd4 {[%clk 0:02:14.3]} 22. Bxb4
{[%clk 0:01:36.9]} 22... Rd8 {[%clk 0:02:10.5]} 23. Be7 {[%clk 0:01:34.4]} 23...
Rb8 {[%clk 0:02:07.3]} 24. Bc5 {[%clk 0:01:07.6]} 24... dxe3 {[%clk 0:02:06.7]}
25. Qxe3 {[%clk 0:01:00.1]} 25... Qxe3 {[%clk 0:02:06.8]} 26. fxe3 {[%clk
0:00:57.9]} 26... h6 {[%clk 0:02:03.2]} 27. Ra5 {[%clk 0:00:45.3]} 27... Bc6
{[%clk 0:02:01.1]} 28. Ra6 {[%clk 0:00:43.7]} 28... Ne4 {[%clk 0:01:53.2]} 29.
Bd4 {[%clk 0:00:38.4]} 29... f6 {[%clk 0:01:51]} 0-1

[Event "*** MasterClass Titled Tuesday Blitz"]
[Site "Chess.com"]
[Date "2017.08.01"]
[Round "6"]
[White "DavidMarkosyan"]
[Black "viggi38"]
[Result "1-0"]
[WhiteElo "2497"]
[BlackElo "2386"]
[TimeControl "180+2"]
[EndTime "14:15:26 PDT"]
[Termination "DavidMarkosyan won by resignation"]

1. Nf3 {[%clk 0:03:01.9]} 1... f5 {[%clk 0:03:00]} 2. b3 {[%clk 0:03:00.6]} 2...
Nf6 {[%clk 0:03:00.3]} 3. Bb2 {[%clk 0:03:02.1]} 3... e6 {[%clk 0:02:58.2]} 4.
g3 {[%clk 0:02:53.2]} 4... Be7 {[%clk 0:02:58.6]} 5. Bg2 {[%clk 0:02:54.8]} 5...
O-O {[%clk 0:02:59]} 6. O-O {[%clk 0:02:56.5]} 6... d6 {[%clk 0:02:57.7]} 7. c4
{[%clk 0:02:54.9]} 7... e5 {[%clk 0:02:57.7]} 8. Nc3 {[%clk 0:02:53.5]} 8... c6
{[%clk 0:02:48.4]} 9. d4 {[%clk 0:02:51.1]} 9... e4 {[%clk 0:02:46.7]} 10. Nd2
{[%clk 0:02:50.4]} 10... d5 {[%clk 0:02:47.3]} 11. e3 {[%clk 0:02:51.2]} 11...
Be6 {[%clk 0:02:46]} 12. Rc1 {[%clk 0:02:47.8]} 12... Nbd7 {[%clk 0:02:41.7]}
13. f4 {[%clk 0:02:39.4]} 13... exf3 {[%clk 0:02:37.7]} 14. Qxf3 {[%clk
0:02:34.7]} 14... Ne4 {[%clk 0:02:36.2]} 15. Qe2 {[%clk 0:02:11.7]} 15... Ndf6
{[%clk 0:02:30.2]} 16. Nf3 {[%clk 0:02:09.8]} 16... Nxc3 {[%clk 0:02:18.8]} 17.
Bxc3 {[%clk 0:02:09.9]} 17... Ne4 {[%clk 0:02:20.7]} 18. Bb2 {[%clk 0:02:09]}
18... a5 {[%clk 0:02:15.3]} 19. a3 {[%clk 0:02:03.7]} 19... Bd6 {[%clk
0:02:13.7]} 20. Ne5 {[%clk 0:02:02.6]} 20... Bxe5 {[%clk 0:02:13.4]} 21. dxe5
{[%clk 0:02:03.3]} 21... Qb6 {[%clk 0:02:12.1]} 22. cxd5 {[%clk 0:01:55.6]}
22... Bxd5 {[%clk 0:02:10.2]} 23. Bd4 {[%clk 0:01:47.7]} 23... Qxb3 {[%clk
0:02:04.7]} 24. Rb1 {[%clk 0:01:06]} 24... Qc4 {[%clk 0:02:04]} 25. Qb2 {[%clk
0:01:06.4]} 25... Rfb8 {[%clk 0:01:25.4]} 26. Rfc1 {[%clk 0:01:05.7]} 26... Qa6
{[%clk 0:01:22]} 27. e6 {[%clk 0:01:04.4]} 27... Qa7 {[%clk 0:01:21.9]} 28. Bxa7
{[%clk 0:01:04.5]} 1-0

[Event "*** MasterClass Titled Tuesday Blitz"]
[Site "Chess.com"]
[Date "2017.08.01"]
[Round "6"]
[White "scrapnel"]
[Black "Fins0905"]
[Result "0-1"]
[WhiteElo "2489"]
[BlackElo "2423"]
[TimeControl "180+2"]
[EndTime "14:15:52 PDT"]
[Termination "Fins0905 won by resignation"]

1. c4 {[%clk 0:03:01.9]} 1... c6 {[%clk 0:03:00.8]} 2. e4 {[%clk 0:03:01.3]}
2... d5 {[%clk 0:03:01.9]} 3. exd5 {[%clk 0:03:02.3]} 3... cxd5 {[%clk
0:03:03.8]} 4. d4 {[%clk 0:03:03.5]} 4... Nf6 {[%clk 0:03:04]} 5. Nc3 {[%clk
0:03:04.4]} 5... Nc6 {[%clk 0:03:04.7]} 6. Bg5 {[%clk 0:03:01.4]} 6... Be6
{[%clk 0:03:04.8]} 7. a3 {[%clk 0:02:56.2]} 7... g6 {[%clk 0:03:00.3]} 8. Bxf6
{[%clk 0:02:36.2]} 8... exf6 {[%clk 0:03:02.2]} 9. Be2 {[%clk 0:02:35]} 9... Bh6
{[%clk 0:02:51.9]} 10. Bf3 {[%clk 0:02:31.5]} 10... Ne7 {[%clk 0:02:52.3]} 11.
cxd5 {[%clk 0:02:15]} 11... Nxd5 {[%clk 0:02:51.1]} 12. Nxd5 {[%clk 0:02:12.2]}
12... Bxd5 {[%clk 0:02:50.9]} 13. Bxd5 {[%clk 0:02:05.9]} 13... Qxd5 {[%clk
0:02:49.4]} 14. Nf3 {[%clk 0:02:07]} 14... O-O {[%clk 0:02:29.4]} 15. O-O {[%clk
0:02:06.4]} 15... Rac8 {[%clk 0:02:30.4]} 16. Re1 {[%clk 0:02:01.6]} 16... Rc7
{[%clk 0:02:23.9]} 17. Qa4 {[%clk 0:01:54.1]} 17... b5 {[%clk 0:02:18.3]} 18.
Qb4 {[%clk 0:01:45]} 18... Rfc8 {[%clk 0:02:04]} 19. Rad1 {[%clk 0:01:44.8]}
19... Rc2 {[%clk 0:01:56.1]} 20. Re7 {[%clk 0:01:37.9]} 20... Bf8 {[%clk
0:01:55.8]} 21. Qe1 {[%clk 0:01:19.5]} 21... Bxe7 {[%clk 0:01:53]} 22. Qxe7
{[%clk 0:01:20.2]} 22... Kg7 {[%clk 0:01:42.3]} 23. Qxa7 {[%clk 0:01:16.3]}
23... Rxb2 {[%clk 0:01:41.7]} 24. h4 {[%clk 0:01:17]} 24... Qb3 {[%clk 0:01:33]}
25. Re1 {[%clk 0:01:17]} 25... Rb1 {[%clk 0:01:31.5]} 26. Rxb1 {[%clk
0:01:17.2]} 26... Qxb1+ {[%clk 0:01:32.4]} 27. Kh2 {[%clk 0:01:18.7]} 27... Qf5
{[%clk 0:01:30.5]} 28. Qb7 {[%clk 0:01:16.3]} 28... Rc2 {[%clk 0:01:27.1]} 29.
Kg1 {[%clk 0:01:11.6]} 29... Qf4 {[%clk 0:01:13.8]} 30. g3 {[%clk 0:01:10.6]}
30... Qc1+ {[%clk 0:00:55.8]} 0-1